Cogmind - Beta 16 --- EXPLORER MODE // 2025.12.09 @ 12:50:28 Player: K.K.Y. Result: Destroyed by H-55 Commando with Gauss Rifle Performance ------------- Evolutions (0) 0 Regions Visited (4) 800 Robots Destroyed (33) 165 Value Destroyed (961) 961 Prototype IDs (15) 300 Alien Tech Used (0) 0 Bonus (0) 0 TOTAL SCORE: 2226 Bonus ------- None Cogmind --------- Core Integrity 0/250 Matter 279/300 Energy 100/100 System Corruption 0% Temperature Cool (0) Movement Flying (920) Ox11 Location -7/Recycling Parts ------- > --- POWER (1) -------- (None) > --- PROPULSION (2) --- Flight Unit > --- UTILITY (3) ------ Light Humpback Makeshift System Shield > --- WEAPON (2) ------- Barrage Gun Makeshift Axe > --- INVENTORY (25) --- Structural Scanner Machine Analyzer Core Analyzer Makeshift Light Armor Plating Rainbow Chip Battle Cannon Multitool SUBCON Basin (Full) Peak State ------------ > --- POWER ------------ (None) > --- PROPULSION ------- Wheel Flight Unit > --- UTILITY ---------- Light Humpback Makeshift System Shield > --- WEAPON ----------- Barrage Gun Makeshift Axe > --- INVENTORY -------- Structural Scanner Machine Analyzer Makeshift Light Armor Plating Rainbow Chip Multitool SUBCON Basin [Rating: 35] Favorites ----------- Power Ion Engine Engine Ion Engine Propulsion Flight Unit Leg Aluminum Leg Wheel Wheel Flight Unit Flight Unit Utility Makeshift System Shield Device Structural Scanner Storage Light Humpback Hackware Makeshift System Shield Protection Makeshift Light Armor Plating Weapon Barrage Gun Energy Gun Subdweller Laser Ballistic Gun Barrage Gun Ballistic Cannon Slug Cannon Slashing Weapon Makeshift Axe Build | -11 -10 -10 -10 -7 ------- Run | Yrd Mat Min Sub Rec Slots Evolved 1 | . 1 . . . Power . | . . . . . Propulsion . | . . . . . Utility 1 | . 1 . . . Weapon . | . . . . . Parts Attached 36 | 8 10 . 18 . Power 5 | 1 2 . 2 . Engine 5 | 1 2 . 2 . Core . | . . . . . Reactor . | . . . . . Propulsion 11 | 4 4 . 3 . Treads . | . . . . . Leg 2 | 2 . . . . Wheel 3 | 2 . . 1 . Hover . | . . . . . Flight 6 | . 4 . 2 . Utility 8 | 1 2 . 5 . Device 4 | 1 2 . 1 . Storage 1 | . . . 1 . Processor . | . . . . . Hackware 1 | . . . 1 . Protection 2 | . . . 2 . Artifact . | . . . . . Weapon 12 | 2 2 . 8 . Energy Gun 1 | . . . 1 . Energy Cannon . | . . . . . Ballistic Gun 8 | 2 1 . 5 . Ballistic Cannon 2 | . 1 . 1 . Launcher . | . . . . . Special Weapon . | . . . . . Impact Weapon . | . . . . . Slashing Weapon 1 | . . . 1 . Piercing Weapon . | . . . . . Special Melee Weapon . | . . . . . Unidentified Prototypes . | . . . . . Parts Lost 10 | . . . 10 . Power 2 | . . . 2 . Propulsion 3 | . . . 3 . Utility 2 | . . . 2 . Weapon 3 | . . . 3 . Highest Loss Streak 3 | . . . 3 . To Critical Strikes 1 | . . . 1 . Average Backups 5 | 1 4 5 4 6 Power . | . . . . . Propulsion . | . . . . . Utility 3 | . 2 3 3 4 Weapon . | . 1 2 . 1 Tool/Special . | . . . . . Unused Backups 10 | 1 1 . 3 5 Power . | . . . . . Propulsion . | . . . . . Utility 7 | 1 1 . 2 3 Weapon 2 | . . . 1 1 Tool/Special 1 | . . . . 1 Average Slot Usage (%) 75 | . 86 100 74 62 Engine 2 | . 12 12 2 . Wheel 4 | . 10 . 4 . Flight 13 | . 14 25 12 12 Device 13 | . 28 37 12 . Storage 6 | . . . 5 12 Hackware 7 | . . . 8 12 Protection 1 | . . . 2 . Ballistic Gun 14 | . 17 12 14 12 Ballistic Cannon 1 | . 3 12 1 . Slashing Weapon 7 | . . . 8 12 Peak Build Rating 35 | 6 9 9 35 34 Average Rating 23 | 4 7 9 24 34 On Entrance 11 | . 6 9 9 34 Avg Prop Armor Cover (%) 3 | . . . 3 . Naked Turns . | . . . . . Heaviest Build 46 | 8 12 12 46 46 Greatest Support 20 | 20 20 14 16 4 Greatest Overweight (x) 11 | 1 2 . 11 11 Average Overweight (x) 1 | . . . 1 11 Largest Inventory Capacity 25 | 5 5 5 25 25 Average Capacity 14 | 5 5 5 14 25 Most Carried 22 | 5 5 5 21 22 Average Carried 12 | 1 4 5 12 21 Final Capacity 25 | 5 5 5 25 25 Final Carried 22 | 3 5 5 21 22 Class Distribution -------------------- 94% | Hacker-Mutant 5% | Scavenger-Mutant Dominant Class ---------------- Hacker-Mutant | -10/Materials Scavenger-Mutant | -10/Mines Hacker-Mutant | -10/Subcaves Hacker-Mutant | -7/Recycling Resources | -11 -10 -10 -10 -7 ----------- Run | Yrd Mat Min Sub Rec Matter Collected 1751 | 306 275 35 1135 . Remotely . | . . . . . Salvage Created 978 | 117 283 55 523 . Parts 63 | 8 16 3 36 . Haulers Intercepted 2 | . 2 . . . Recyclers Shooed 1 | . 1 . . . Parts Field Recycled . | . . . . . Retrieved Matter . | . . . . . Parts Self-Destructed . | . . . . . Prevented . | . . . . . Parts Restored . | . . . . . Kills | -11 -10 -10 -10 -7 ------- Run | Yrd Mat Min Sub Rec Combat Hostiles Destroyed 25 | . 5 2 18 . Guns 18 | . 5 . 13 . Cannons 7 | . . 2 5 . Classes Destroyed 9 | 2 4 . 3 . Tunneler 2 | 2 . . . . Hauler 2 | . 2 . . . Recycler 1 | 1 . . . . Turret 1 | . . . 1 . Watcher 2 | . 2 . . . Swarmer 4 | . 2 . 2 . Grunt 6 | . 3 2 1 . Sentry 1 | . . . 1 . Subdweller 14 | . . . 14 . Best Kill Streak 4 | 3 3 2 4 . Combat Bots Only 4 | . 2 2 4 . Max Kills in Single Turn 2 | 1 1 1 2 . Gunslinging . | . . . . . Exploded . | . . . . . Melee . | . . . . . Uniques/NPCs Destroyed . | . . . . . Combat | -11 -10 -10 -10 -7 -------- Run | Yrd Mat Min Sub Rec Hostile Shots Fired 154 | . 26 13 101 14 Missed 58 | . 8 5 39 6 Hits 96 | . 18 8 62 8 Projectile 96 | . 18 8 62 8 Critical Strikes 1 | . . . 1 . Damage Taken 1059 | . 137 74 788 60 Core 251 | . 21 21 196 13 Absorbed by Shields . | . . . . . Ignored by Resistances 620 | . 91 43 447 39 Core Remaining (%) 100 | 100 . . . . Volleys Fired 175 | 9 33 7 126 . Largest 2 | 2 2 2 2 . Hottest 68 | 40 50 50 68 . Shots Fired 311 | 18 53 14 226 . Gun 275 | 18 47 7 203 . Cannon 36 | . 6 7 23 . Launcher . | . . . . . Special . | . . . . . Kinetic 311 | 18 53 14 226 . Thermal . | . . . . . Explosive . | . . . . . Electromagnetic . | . . . . . Robot Hit Streak 37 | 10 25 37 31 . Robot Miss Streak 2 | 1 2 1 1 . Penetration Max . | . . . . . Secondary Targets 2 | . 2 . . . Max Gunslinging Chain 1 | . 1 . . . Shots Hit Robots 164 | 14 45 13 92 . Core Hits 66 | 6 18 6 36 . Critical Kills 1 | . . . 1 . Critical Parts Destroyed 1 | 1 . . . . Critical Strikes 5 | 1 . . 4 . Destroy 5 | 1 . . 4 . Melee Attacks . | . . . . . Impact . | . . . . . Slashing . | . . . . . Piercing . | . . . . . Sneak Attacks . | . . . . . Combat Hostiles . | . . . . . Follow-up Attacks . | . . . . . Damage Inflicted 2653 | 148 501 138 1866 . Guns 1993 | 148 421 40 1384 . Cannons 660 | . 80 98 482 . Explosions . | . . . . . Melee . | . . . . . Ramming . | . . . . . Kinetic 2653 | 148 501 138 1866 . Thermal . | . . . . . Explosive . | . . . . . Electromagnetic . | . . . . . Impact . | . . . . . Slashing . | . . . . . Piercing . | . . . . . Highest Corruption . | . . . . . Average Corruption . | . . . . . Corruption Purged . | . . . . . Corruption Blocked . | . . . . . Overload Shots . | . . . . . Overflow Damage 5 | . . . 5 . Projectiles 5 | . . . 5 . Explosions . | . . . . . Melee . | . . . . . Knockbacks 5 | . . 1 4 . Impact . | . . . . . Kinetic 5 | . . 1 4 . Secondary . | . . . . . Self-Inflicted Damage . | . . . . . Shots . | . . . . . Rammed . | . . . . . Targets Rammed . | . . . . . Kicked . | . . . . . Crushed . | . . . . . Highest Temperature 69 | . 28 69 4 . Average Temperature 18 | . 11 28 2 . Received Heat Transfer 381 | . 51 63 255 12 Siege Activations . | . . . . . Martial Activations . | . . . . . Shielding Activations . | . . . . . Robots Disrupted . | . . . . . Combat Hostiles . | . . . . . Robots Corrupted . | . . . . . Combat Hostiles . | . . . . . Parts Fried . | . . . . . Impact Corruptions . | . . . . . Robots Melted . | . . . . . Combat Hostiles . | . . . . . Parts Melted . | . . . . . Heat Transferred . | . . . . . Parts Sabotaged . | . . . . . Parts Stolen . | . . . . . Parts Stripped . | . . . . . Power Chain Reactions . | . . . . . Alert | -11 -10 -10 -10 -7 ------- Run | Yrd Mat Min Sub Rec Maximum Alert Level . | . . . . . Low Security (%) 100 | 100 100 100 . 100 Level 1 . | . . . . . Level 2 . | . . . . . Level 3 . | . . . . . Level 4 . | . . . . . Level 5 . | . . . . . High Security . | . . . . . Max Security . | . . . . . Peak Influence 47 | 10 47 35 . 18 Initial . | . . . . . Average 4 | 1 10 4 . . Influence Increases 453 | 15 157 50 205 26 Destroy 0b10 Robot/C 240 | . 100 40 100 . Destroy 0b10 Robot/NC 35 | 15 20 . . . Destroy Leader 28 | . 18 10 . . Successful Hack 30 | . 4 . . 26 Partial Spotted 15 | . 15 . . . Lose Combat Pursuer 105 | . . . 105 . Influence Decreases 453 | 15 157 50 205 26 Time Decay 443 | 15 157 50 195 26 Lost Part 10 | . . . 10 . Squads Dispatched . | . . . . . Investigation . | . . . . . Extermination . | . . . . . Reinforcement . | . . . . . Assault . | . . . . . Garrison . | . . . . . Intercept . | . . . . . Searches Triggered . | . . . . . Construction Impeded . | . . . . . Haulers Reinforced . | . . . . . Active Scanning Responses . | . . . . . Cargo Convoy Interrupts . | . . . . . Stealth | -11 -10 -10 -10 -7 --------- Run | Yrd Mat Min Sub Rec Distress Signals 1 | . 1 . . . Communications Jammed . | . . . . . Distress Signals . | . . . . . Times Spotted 38 | . 10 6 20 2 Peak Tracking Total 4 | . 4 2 3 2 Tactical Retreats 7 | . . 2 5 . ECM-based Alert Blocks 4 | . . 4 . . Traps | -11 -10 -10 -10 -7 ------- Run | Yrd Mat Min Sub Rec Traps Triggered 6 | . 4 . 2 . Indirectly . | . . . . . Trap Hack Attempts . | . . . . . Triggered . | . . . . . Disarmed . | . . . . . Reprogrammed . | . . . . . Reused . | . . . . . Traps Extracted . | . . . . . Installed . | . . . . . Triggered . | . . . . . Machines | -11 -10 -10 -10 -7 ---------- Run | Yrd Mat Min Sub Rec Machines Disabled 1 | . . . 1 . Max in Single Turn 1 | . . . 1 . Machines Repaired . | . . . . . Machines Dismantled . | . . . . . Machines Sabotaged . | . . . . . Overloaded Fab Kills . | . . . . . Hacking | -11 -10 -10 -10 -7 --------- Run | Yrd Mat Min Sub Rec Machines Accessed 15 | . 7 . 4 4 Terminals 9 | . 6 . . 3 Fabricators . | . . . . . Repair Stations . | . . . . . Recycling Units 2 | . 1 . . 1 Scanalyzers . | . . . . . Garrison Access . | . . . . . Total Hacks 27 | . 10 . 7 10 Successful 22 | . 10 . 7 5 Failed 5 | . . . . 5 Catastrophic 1 | . . . . 1 Database Lockouts . | . . . . . Manual 13 | . 6 . . 7 Terminals 16 | . 8 . . 8 Fabricators . | . . . . . Repair Stations . | . . . . . Recycling Units 4 | . 2 . . 2 Scanalyzers . | . . . . . Garrison Access . | . . . . . Terminal Hacks 10 | . 2 . 7 1 Record 5 | . 1 . 4 . Prototype ID Bank 1 | . . . . 1 Open Door 1 | . . . 1 . Zone Layout 1 | . 1 . . . Proto ID Catalog 1 | . . . 1 . Release Object 1 | . . . 1 . Fabricator Hacks . | . . . . . Repair Station Hacks . | . . . . . Recycling Unit Hacks 3 | . 2 . . 1 Retrieve Matter 1 | . 1 . . . Retrieve Components 2 | . 1 . . 1 Scanalyzer . | . . . . . Garrison Access Hacks . | . . . . . Unauthorized Hacks 9 | . 6 . . 3 Terminals 8 | . 6 . . 2 Botnet 8 | . 6 . . 2 Fabricators . | . . . . . Repair Stations . | . . . . . Recycling Units 1 | . . . . 1 Reject 1 | . . . . 1 Scanalyzers . | . . . . . Garrison Access . | . . . . . Data Cores Recovered . | . . . . . Used . | . . . . . Hacking Detections 4 | . 1 . . 3 Full Trace Events 2 | . . . . 2 Feedback Events . | . . . . . Feedback Blocked . | . . . . . Robot Schematics Acquired . | . . . . . Robots Built . | . . . . . Authchips . | . . . . . Time . | . . . . . Total Robot Build Rating . | . . . . . Part Schematics Acquired . | . . . . . Parts Built . | . . . . . Authchips . | . . . . . Time . | . . . . . Total Part Build Rating . | . . . . . Part Studies Acquired . | . . . . . Parts Repaired . | . . . . . Time . | . . . . . Parts Recycled . | . . . . . Recycled Matter . | . . . . . Retrieved Matter . | . . . . . Retrieved Components 5 | . 3 . . 2 Parts Scanalyzed . | . . . . . Part Schematics Acquired . | . . . . . Parts Damaged . | . . . . . Bothacking | -11 -10 -10 -10 -7 ------------ Run | Yrd Mat Min Sub Rec Used RIF Installer . | . . . . . Robots Hacked . | . . . . . Non-combat . | . . . . . Combat . | . . . . . Robot Hacks Applied . | . . . . . Relay Couplers Released . | . . . . . Fabnet Peak Effective % . | . . . . . Robots Rewired . | . . . . . Allies Hacked . | . . . . . Hacks Repelled . | . . . . . Allies | -11 -10 -10 -10 -7 -------- Run | Yrd Mat Min Sub Rec Total Allies . | . . . . . Largest Group . | . . . . . Highest-Rated Group . | . . . . . Highest-Rated Ally . | . . . . . Total Orders . | . . . . . Ally Attacks . | . . . . . Total Damage . | . . . . . Kills . | . . . . . Allies Corrupted . | . . . . . Allies Melted . | . . . . . Intel | -11 -10 -10 -10 -7 ------- Run | Yrd Mat Min Sub Rec Active Infowar (turns) 3371 | 104 279 148 2840 . Sensors 1701 | . 193 58 1450 . Structural 2346 | . . . 2346 . ECM 473 | 104 279 90 . . Robot Analysis Total . | . . . . . Derelict Logs Recovered 2 | . . 1 1 . Drone Launches . | . . . . . Drone Recoveries . | . . . . . Exploration | -11 -10 -10 -10 -7 ------------- Run | Yrd Mat Min Sub Rec Turns Passed 7503 | 110 506 262 5799 826 Spaces Moved 4516 | 63 752 598 3014 89 Core 13 | 13 . . . . Treads . | . . . . . Legs 34 | 34 . . . . Wheels 2254 | 16 189 . 2049 . Hover . | . . . . . Flight 2215 | . 563 598 965 89 Fastest Speed 37 | 50 37 37 37 920 Average Speed 149 | 100 48 37 176 920 Slowest Speed 920 | 120 200 37 920 920 Overloaded Moves . | . . . . . Propulsion Burnouts . | . . . . . Robots Hopped 4 | . 2 1 1 . Potential Cave-ins . | . . . . . Cave-ins Triggered . | . . . . . Exploration Rate (%) 64 | 4 95 99 95 27 Regions Visited 4 Branch Regions 3 Pre-discovered Areas 2 | . . . 2 . Known Exits Taken 4 | 1 1 1 1 . Unknown Exits Taken . | . . . . . Scrap Searched 19 | . . . 19 . Spaces Dug . | . . . . . Terrain Destroyed 1 | . . . 1 . Melee . | . . . . . Projectile 1 | . . . 1 . AOE . | . . . . . Terrain Rammed . | . . . . . Walls Destroyed . | . . . . . Machines Disabled . | . . . . . Actions | -11 -10 -10 -10 -7 --------- Run | Yrd Mat Min Sub Rec Total 4966 | 95 846 624 3301 100 Wait 186 | . 34 21 121 10 Move 4504 | 62 747 595 3011 89 Hop 4 | . 2 1 1 . Pick Up 28 | 12 6 . 9 1 Fast Attach 15 | . 6 . 9 . Attach 15 | 8 4 . 3 . Detach 4 | 1 2 . 1 . Swap 11 | . 4 . 7 . Drop 24 | 3 8 . 13 . Fire 175 | 9 33 7 126 . Melee . | . . . . . Ram . | . . . . . Kick . | . . . . . Crush . | . . . . . Escape Stasis . | . . . . . Rewire . | . . . . . Trap . | . . . . . Miscellaneous . | . . . . . Route ------- -11/Scrapyard -10/Materials (discovered 4 exits: *Mat x3 / *Min) -10/Mines (discovered 3 exits: *Mat x2 / *Sub) -10/Subcaves (discovered 3 exits: *Mat x2 / *Rec) -7/Recycling History --------- Turn | Location | Event 4 | -11/Scrapyard | Identified exit to Materials 4 | -11/Scrapyard | Discovered exit to Materials (range 16) 111 | -11/Scrapyard | Entered Materials 111 | -10/Materials | Evolved 1 slot: Utility x1 217 | -10/Materials | Identified exit to Mines 217 | -10/Materials | Discovered exit to Mines (range 14) 313 | -10/Materials | Build established: Hacker-Mutant 373 | -10/Materials | Identified exit to Materials 373 | -10/Materials | Discovered exit to Materials (range 14) 520 | -10/Materials | Discovered exit to Materials (range 4) 554 | -10/Materials | Discovered exit to Materials (range 5) 617 | -10/Materials | Entered Mines 628 | -10/Mines | Discovered exit to Materials (range 8) 636 | -10/Mines | Met a Derelict bent on vengeance 758 | -10/Mines | Discovered exit to Materials (range 8) 774 | -10/Mines | Build established: Scavenger-Mutant 877 | -10/Mines | Identified exit to Subcaves 877 | -10/Mines | Discovered exit to Subcaves (range 6) 879 | -10/Mines | Entered Subcaves 880 | -10/Subcaves | Approached by a straggling Scientist 880 | -10/Subcaves | Identified exit to Recycling 1058 | -10/Subcaves | Visited Clippyterm 1061 | -10/Subcaves | Learned Research machine intel 1202 | -10/Subcaves | Build established: Hacker-Mutant 1250 | -10/Subcaves | Shifting Twisted Machinery released Sub. Optics 1373 | -10/Subcaves | Identified exit to Materials 1373 | -10/Subcaves | Discovered exit to Materials (range 15) 1703 | -10/Subcaves | Learned location of Zion (-7) 1703 | -10/Subcaves | Met a Zionite searching for "candidates" 1728 | -10/Subcaves | Discovered exit to Materials (range 12) 1731 | -10/Subcaves | Core integrity fell below 50% 1997 | -10/Subcaves | Disturbed a concealed Subdweller 2108 | -10/Subcaves | A swath of the cavern ceiling suddenly collapsed 2296 | -10/Subcaves | A swath of the cavern ceiling suddenly collapsed 2367 | -10/Subcaves | Core integrity fell below 20% 2526 | -10/Subcaves | Lost 3 parts (1p1u1w) 2848 | -10/Subcaves | Shifting Twisted Machinery released Flamer 3298 | -10/Subcaves | Visited 4L-MR0's lab 3312 | -10/Subcaves | Found Rainbow Chip 3781 | -10/Subcaves | Found SUBCON Basin 3872 | -10/Subcaves | Shifting Twisted Machinery released Battle Cannon 6678 | -10/Subcaves | Entered Recycling 6679 | -7/Recycling | Met a Zionite searching for Scraptown 7504 | -7/Recycling | Destroyed by H-55 Commando with Gauss Rifle Last Messages --------------- Trojan loaded successfully. Testing... Terminal linked with 1 system. Awaiting botnet instructions. >>Prototypes Downloading prototype IDs... F-cell Engine Force Rifle Exp. Power Shielding 07277_ Connecting with Recycling Unit... >>Trojan(Reject) Trojan loaded successfully. Testing... Ejection routine running. >>Retrieve(Components) Retrieving 2 components... Core Analyzer Imp. Carbon-fiber Leg 07286_ Acquired Core Analyzer. 07504_ Slug penetrates Wall. Map ----- +----------------------------------------------------+ | ?????????????????????????????????????????????????? | | ?????????? ???????????????????????????????????? | | ????????? ???????????????????????????????????? | | ????????# ???????????????????????????????????? | | ????????# ???????????????????????????????????? | | ????????+ ???????????????????????????????????? | | ????????# ??????? ??????????????????????????? | | ???????## ??????? ??????????????????????????? | | ???????? ??????? ??????????????????????????? | | ????????? #??????? ??????????????????????????? | | ????????? #??????? ??????????????????????????? | | ?????????? #??????? "???????#?????????????????? | | ??????????? #??????? "?????? #?????????????????? | | ??#######+## #??????? "????? #?????????????????? | | ??# ## #####??? ???? #?????????????????? | | ??# """ ## #???#+##+## #?????????????????? | | #?# """ + ##### #?????????????????? | | ?# """ #### #?""" #?????????????????? | | ?# #??# #??Y #######???????????? | | ?# #??# #???" #???????????? | | ?# #??# ##### """" #???????????? | | ## = #??# """" Y #???????????? | | ## "Y" #??# ##### """" h ??????????? | | + """ #??# #???# r #?????????????????? | | # #?## ##??# #?????????????????? | | ######+#### #??# ##@###+##?????????????????? | | T" #??# # ?????????????????????? | | " #??# # ???????????????????? | | #??# # ?????????????????? | | ########## #??# # ???????????????? | | #??#########+###### # ?????????????? | | #??# # # #????????????? | | #??# # # #????????????? | | #??# """ # # #????????????? | | #??# "" """"" # # #????????????? | | #??# "" """"" # # #????????????? | | ####??# "T """"" # + #????????????? | | ??????# "" """ #?# ??????????????? | | ??????# "" #??r#######r????????????????? | | ??????# #??#????????????????????????? | | ??????#######""T""####???????????????????????????? | | ????????????#"""""#??????????????????????????????? | | ????????????#######??????????????????????????????? | | | | | | | | | | | | | | | +----------------------------------------------------+ Best States ------------- Heat Dissipation 25 Energy Generation 15 Energy Capacity 250 Matter Stores 300 Matter Capacity 300 Sight Range 16 Robot Scan Range 14 Terrain Scan Density 10 ECM Strength 1 Additional Mass Support 6 Armor Coverage 100 Resistance: KI 35 Resistance: TH 35 Resistance: EX 35 Resistance: EM 35 Resistance: I 35 Resistance: S 35 Resistance: P 35 Evasion (%) 62 Offensive Hacking 20 Defensive Hacking 11 Item Schematics ----------------- None Robot Schematics ------------------ None Fabricated ------------ Nothing Repaired ---------- Nothing Studied --------- None Alien Tech Used ----------------- None Achievements -------------- None Challenges ------------ None Game ------ Seed ZioniteFlightSubcomponent Manual? 0 Play Time 00:30:51 Cumulative 180.2 hours Start 2025.12.09 @ 12:11:33 End 2025.12.09 @ 12:50:28 Sessions 1 Manual Loads 0 Difficulty Explorer Special Mode None Game No. 256 Rogue 0 Adventurer 0 Explorer 256 Win Type - Total 0 Types 0/0/0/0/0/0/0/0/0/0 Lore% 70 Gallery% 67 Achievement% 53 Wizard Run 0 Options --------- Layout 1 ASCII 0 Keyboard 0 Movement Mouse Keybinds 0 Fullscreen 1 Font 24/Smallcaps Map View 50x35 Zoom Use 0% Tactical HUD 1 Map Filters NONE Filters NONE Steam 1 RUN: 2bd57794-d3b1-4209-a571-6182bae40883